[Event "Early-Titled-Tuesday-Blitz-March-26-2024"]
[Site "Chess.com"]
[Date "2024.03.26"]
[Round "1"]
[White "semchik73"]
[Black "monomita"]
[Result "0-1"]
[WhiteElo "2410"]
[BlackElo "2743"]
[TimeControl "180+1"]
[EndTime "8:08:07 PDT"]
[Termination "monomita won by resignation"]

1. Nf3 {[%clk 0:03:00.4]} 1... d5 {[%clk 0:02:59.6]} 2. c4 {[%clk 0:03:00.8]}
2... c6 {[%clk 0:02:56.2]} 3. e3 {[%clk 0:03:01.1]} 3... Nf6 {[%clk 0:02:56.2]}
4. Nc3 {[%clk 0:03:01.5]} 4... g6 {[%clk 0:02:56.3]} 5. d4 {[%clk 0:03:01.4]}
5... Bg7 {[%clk 0:02:56.6]} 6. Be2 {[%clk 0:03:01.8]} 6... O-O {[%clk
0:02:57.2]} 7. O-O {[%clk 0:03:02.1]} 7... Bg4 {[%clk 0:02:56.9]} 8. Ne5 {[%clk
0:03:01.2]} 8... Bxe2 {[%clk 0:02:56.8]} 9. Qxe2 {[%clk 0:03:02.1]} 9... e6
{[%clk 0:02:55.7]} 10. f4 {[%clk 0:03:01.9]} 10... Nbd7 {[%clk 0:02:55.9]} 11.
b3 {[%clk 0:03:01.1]} 11... Nxe5 {[%clk 0:02:47.9]} 12. fxe5 {[%clk 0:02:59.9]}
12... Nd7 {[%clk 0:02:45.5]} 13. Ba3 {[%clk 0:02:50.7]} 13... Re8 {[%clk
0:02:43.5]} 14. Qf3 {[%clk 0:02:50.9]} 14... f5 {[%clk 0:02:37.8]} 15. exf6
{[%clk 0:02:39.4]} 15... Nxf6 {[%clk 0:02:26.9]} 16. Rad1 {[%clk 0:02:34.1]}
16... Qa5 {[%clk 0:00:52.6]} 17. Bb2 {[%clk 0:02:33.5]} 17... Rf8 {[%clk
0:00:49.3]} 18. Qh3 {[%clk 0:02:31.9]} 18... Rae8 {[%clk 0:00:49.3]} 19. Rf3
{[%clk 0:02:25.2]} 19... Qb4 {[%clk 0:00:45.8]} 20. Nb1 {[%clk 0:02:18.4]} 20...
dxc4 {[%clk 0:00:44.4]} 21. Ba3 {[%clk 0:02:17.1]} 21... Qa5 {[%clk 0:00:36.4]}
22. Bxf8 {[%clk 0:02:17]} 22... Kxf8 {[%clk 0:00:34.2]} 23. bxc4 {[%clk
0:02:15.4]} 23... Qxa2 {[%clk 0:00:32.4]} 24. Rdf1 {[%clk 0:02:13.8]} 24... Kg8
{[%clk 0:00:32.3]} 25. R3f2 {[%clk 0:01:57.8]} 25... Qb3 {[%clk 0:00:16.9]} 26.
Nd2 {[%clk 0:01:56.5]} 26... Qd3 {[%clk 0:00:16.5]} 27. Qf3 {[%clk 0:01:41.4]}
27... Rf8 {[%clk 0:00:16]} 28. Qe2 {[%clk 0:01:41.1]} 28... Qc3 {[%clk 0:00:16]}
29. h3 {[%clk 0:01:32.6]} 29... a5 {[%clk 0:00:15.7]} 30. Kh2 {[%clk 0:01:27.7]}
30... Qb4 {[%clk 0:00:16]} 31. e4 {[%clk 0:01:22.6]} 31... Nh5 {[%clk
0:00:12.5]} 32. Rxf8+ {[%clk 0:01:21]} 32... Bxf8 {[%clk 0:00:13.4]} 33. e5
{[%clk 0:01:14.1]} 33... Bh6 {[%clk 0:00:12.6]} 34. Ne4 {[%clk 0:01:09.8]} 34...
Kg7 {[%clk 0:00:12.1]} 35. Qf3 {[%clk 0:01:07]} 35... Qe7 {[%clk 0:00:10.6]} 36.
Nd6 {[%clk 0:01:02.9]} 36... Bf4+ {[%clk 0:00:10.1]} 37. g3 {[%clk 0:00:52.2]}
37... Bxg3+ {[%clk 0:00:09.8]} 38. Kg2 {[%clk 0:00:52.7]} 38... Bf4 {[%clk
0:00:08.4]} 39. Qg4 {[%clk 0:00:49.7]} 39... a4 {[%clk 0:00:06.1]} 40. Rxf4
{[%clk 0:00:48.8]} 40... Nxf4+ {[%clk 0:00:07]} 41. Qxf4 {[%clk 0:00:49.3]}
41... b5 {[%clk 0:00:07.9]} 42. cxb5 {[%clk 0:00:45.2]} 42... cxb5 {[%clk
0:00:08.8]} 43. Nxb5 {[%clk 0:00:45.3]} 43... Qb7+ {[%clk 0:00:08.5]} 44. Qf3
{[%clk 0:00:42.9]} 44... Qxb5 {[%clk 0:00:09]} 45. Qf6+ {[%clk 0:00:42.3]} 45...
Kg8 {[%clk 0:00:07.8]} 46. Qxe6+ {[%clk 0:00:42.4]} 46... Kf8 {[%clk 0:00:07.6]}
47. Qd6+ {[%clk 0:00:41.2]} 47... Ke8 {[%clk 0:00:07.6]} 48. Qe6+ {[%clk
0:00:39.9]} 48... Kd8 {[%clk 0:00:06.5]} 49. Qg8+ {[%clk 0:00:39.1]} 49... Kc7
{[%clk 0:00:06]} 50. Qxh7+ {[%clk 0:00:39.1]} 50... Qd7 {[%clk 0:00:06.6]} 51.
Qg8 {[%clk 0:00:35.2]} 51... a3 {[%clk 0:00:05.1]} 52. Qc4+ {[%clk 0:00:35.9]}
52... Qc6+ {[%clk 0:00:05.4]} 53. Qxc6+ {[%clk 0:00:27.8]} 53... Kxc6 {[%clk
0:00:06.3]} 54. e6 {[%clk 0:00:28.7]} 54... Kd6 {[%clk 0:00:06.4]} 55. e7 {[%clk
0:00:29.6]} 55... Kxe7 {[%clk 0:00:06.8]} 56. d5 {[%clk 0:00:30.5]} 56... Kd6
{[%clk 0:00:07.5]} 57. Kf3 {[%clk 0:00:31.2]} 57... a2 {[%clk 0:00:08.4]} 58.
Kf4 {[%clk 0:00:32.1]} 58... a1=Q {[%clk 0:00:08.9]} 59. Kg5 {[%clk 0:00:33]}
59... Qg1+ {[%clk 0:00:09.6]} 60. Kf6 {[%clk 0:00:32.8]} 60... Kxd5 {[%clk
0:00:09.9]} 61. h4 {[%clk 0:00:33.7]} 61... Qg4 {[%clk 0:00:10]} 62. Kg7 {[%clk
0:00:33.9]} 62... g5 {[%clk 0:00:10.5]} 63. Kg6 {[%clk 0:00:34.8]} 63... gxh4+
{[%clk 0:00:10.7]} 64. Kh6 {[%clk 0:00:34.7]} 64... h3 {[%clk 0:00:11]} 0-1

[Event "Early-Titled-Tuesday-Blitz-March-26-2024"]
[Site "Chess.com"]
[Date "2024.03.26"]
[Round "1"]
[White "quizden37"]
[Black "AA95"]
[Result "1-0"]
[WhiteElo "2846"]
[BlackElo "2468"]
[TimeControl "180+1"]
[EndTime "8:08:12 PDT"]
[Termination "quizden37 won by resignation"]

1. Nf3 {[%clk 0:02:58.1]} 1... Nf6 {[%clk 0:02:59.6]} 2. g3 {[%clk 0:02:57.7]}
2... g6 {[%clk 0:03:00]} 3. Bg2 {[%clk 0:02:58.1]} 3... Bg7 {[%clk 0:03:00.4]}
4. O-O {[%clk 0:02:57.9]} 4... O-O {[%clk 0:03:00.7]} 5. c4 {[%clk 0:02:54.8]}
5... c6 {[%clk 0:02:58.6]} 6. d3 {[%clk 0:02:44.1]} 6... d5 {[%clk 0:02:58.1]}
7. Qc2 {[%clk 0:02:43.8]} 7... Bf5 {[%clk 0:02:54.3]} 8. Nbd2 {[%clk 0:02:41.7]}
8... Na6 {[%clk 0:02:38.4]} 9. a3 {[%clk 0:02:40.6]} 9... Nc5 {[%clk 0:02:29.1]}
10. b4 {[%clk 0:02:40.1]} 10... Ne6 {[%clk 0:02:17.1]} 11. Bb2 {[%clk
0:02:40.3]} 11... a5 {[%clk 0:01:47.3]} 12. h3 {[%clk 0:02:26]} 12... Nc7 {[%clk
0:01:26.3]} 13. e4 {[%clk 0:02:22.2]} 13... Be6 {[%clk 0:01:19.8]} 14. exd5
{[%clk 0:02:16.5]} 14... cxd5 {[%clk 0:01:19.7]} 15. c5 {[%clk 0:02:17.1]} 15...
axb4 {[%clk 0:01:16.1]} 16. axb4 {[%clk 0:02:16.8]} 16... Nb5 {[%clk 0:01:14]}
17. Rfe1 {[%clk 0:02:15.9]} 17... d4 {[%clk 0:01:01.1]} 18. Rxa8 {[%clk
0:02:15.2]} 18... Qxa8 {[%clk 0:01:00.8]} 19. Nxd4 {[%clk 0:02:16.1]} 19... Nxd4
{[%clk 0:00:54.6]} 20. Bxd4 {[%clk 0:02:16.2]} 20... Rd8 {[%clk 0:00:54.7]} 21.
Qb2 {[%clk 0:02:16.5]} 21... Qc8 {[%clk 0:00:41.5]} 22. Nc4 {[%clk 0:02:14.7]}
22... Qd7 {[%clk 0:00:36.6]} 23. Be5 {[%clk 0:02:09.7]} 23... Qxd3 {[%clk
0:00:30.5]} 24. Na5 {[%clk 0:02:09.6]} 24... Bd5 {[%clk 0:00:18.5]} 25. Qc3
{[%clk 0:01:48.4]} 25... Bxg2 {[%clk 0:00:16.6]} 26. Qxd3 {[%clk 0:01:47.5]}
26... Rxd3 {[%clk 0:00:17.5]} 27. Kxg2 {[%clk 0:01:48.4]} 27... Nd5 {[%clk
0:00:14.3]} 28. b5 {[%clk 0:01:40.8]} 28... Nc3 {[%clk 0:00:09.6]} 29. c6 {[%clk
0:01:29.4]} 29... bxc6 {[%clk 0:00:08.9]} 30. bxc6 {[%clk 0:01:30.3]} 30... Bxe5
{[%clk 0:00:08.5]} 31. Rxe5 {[%clk 0:01:31.2]} 31... Nd5 {[%clk 0:00:07.7]} 32.
Nb7 {[%clk 0:01:23.8]} 32... e6 {[%clk 0:00:06.3]} 33. Re2 {[%clk 0:00:49]}
33... Rc3 {[%clk 0:00:06.5]} 34. Na5 {[%clk 0:00:48.4]} 34... Rc5 {[%clk
0:00:06.8]} 35. Ra2 {[%clk 0:00:48.4]} 35... Nb4 {[%clk 0:00:06.9]} 36. Nb7
{[%clk 0:00:44]} 36... Rxc6 {[%clk 0:00:05.9]} 37. Ra8+ {[%clk 0:00:44]} 37...
Kg7 {[%clk 0:00:06.3]} 38. Nd8 {[%clk 0:00:44.6]} 38... Rc2 {[%clk 0:00:06.1]}
39. Ra7 {[%clk 0:00:44.5]} 39... Nd3 {[%clk 0:00:06]} 40. Rxf7+ {[%clk
0:00:44.3]} 40... Kg8 {[%clk 0:00:06.5]} 41. Rf6 {[%clk 0:00:41]} 41... Ne1+
{[%clk 0:00:03.3]} 42. Kf1 {[%clk 0:00:40.6]} 42... Nd3 {[%clk 0:00:03.3]} 43.
Nxe6 {[%clk 0:00:40.8]} 43... Rc8 {[%clk 0:00:03.4]} 44. Ng5 {[%clk 0:00:35.6]}
44... Ne5 {[%clk 0:00:02.9]} 45. Re6 {[%clk 0:00:36]} 45... Nc4 {[%clk
0:00:02.7]} 46. Re7 {[%clk 0:00:34.3]} 46... h6 {[%clk 0:00:01.6]} 47. Ne6
{[%clk 0:00:33.7]} 47... h5 {[%clk 0:00:01.6]} 48. Rg7+ {[%clk 0:00:33.7]} 48...
Kh8 {[%clk 0:00:01.5]} 49. Rxg6 {[%clk 0:00:34.6]} 49... Rc6 {[%clk 0:00:01.8]}
50. Nf4 {[%clk 0:00:32.8]} 50... Rc7 {[%clk 0:00:01.8]} 51. Rh6+ {[%clk
0:00:32.1]} 51... Kg7 {[%clk 0:00:02.1]} 52. Rxh5 {[%clk 0:00:33]} 52... Kf6
{[%clk 0:00:02.2]} 53. Nd5+ {[%clk 0:00:32.5]} 53... Kg6 {[%clk 0:00:02.7]} 54.
Nxc7 {[%clk 0:00:33.1]} 54... Kxh5 {[%clk 0:00:03.1]} 55. Nd5 {[%clk 0:00:34]}
55... Ne5 {[%clk 0:00:03.3]} 56. Kg2 {[%clk 0:00:34.3]} 56... Kh6 {[%clk
0:00:03.2]} 57. h4 {[%clk 0:00:34.3]} 57... Nd3 {[%clk 0:00:03.5]} 58. g4 {[%clk
0:00:33.2]} 58... Nc5 {[%clk 0:00:03]} 59. Kg3 {[%clk 0:00:33.5]} 59... Ne4+
{[%clk 0:00:02.7]} 60. Kf3 {[%clk 0:00:34.1]} 60... Nd2+ {[%clk 0:00:02.3]} 61.
Kf4 {[%clk 0:00:34.1]} 61... Nb3 {[%clk 0:00:02]} 62. Ne3 {[%clk 0:00:34.2]}
62... Nd4 {[%clk 0:00:01.5]} 63. Nf5+ {[%clk 0:00:34.3]} 63... Nxf5 {[%clk
0:00:01.6]} 64. Kxf5 {[%clk 0:00:34.8]} 64... Kg7 {[%clk 0:00:02]} 65. h5 {[%clk
0:00:35.4]} 1-0

[Event "Early-Titled-Tuesday-Blitz-March-26-2024"]
[Site "Chess.com"]
[Date "2024.03.26"]
[Round "1"]
[White "Bykov_Egor"]
[Black "Kapitan_Bayan"]
[Result "1-0"]
[WhiteElo "2628"]
[BlackElo "2280"]
[TimeControl "180+1"]
[EndTime "8:08:19 PDT"]
[Termination "Bykov_Egor won by checkmate"]

1. e4 {[%clk 0:03:00]} 1... c5 {[%clk 0:02:59]} 2. Nf3 {[%clk 0:02:59.9]} 2...
d6 {[%clk 0:02:58.9]} 3. d4 {[%clk 0:02:59.4]} 3... cxd4 {[%clk 0:02:58.4]} 4.
Nxd4 {[%clk 0:03:00.3]} 4... Nf6 {[%clk 0:02:58.1]} 5. Nc3 {[%clk 0:02:59]} 5...
a6 {[%clk 0:02:58.3]} 6. Bg5 {[%clk 0:02:58.4]} 6... e6 {[%clk 0:02:57.2]} 7. f4
{[%clk 0:02:58.6]} 7... h6 {[%clk 0:02:56.8]} 8. Bxf6 {[%clk 0:02:56.2]} 8...
Qxf6 {[%clk 0:02:56.4]} 9. Qd2 {[%clk 0:02:56.3]} 9... g5 {[%clk 0:02:56.3]} 10.
fxg5 {[%clk 0:02:54.4]} 10... hxg5 {[%clk 0:02:55.9]} 11. O-O-O {[%clk
0:02:53.8]} 11... Qf4 {[%clk 0:02:45]} 12. Qxf4 {[%clk 0:02:50.6]} 12... gxf4
{[%clk 0:02:45.9]} 13. Nf3 {[%clk 0:02:47.5]} 13... Nc6 {[%clk 0:02:37.6]} 14.
Bc4 {[%clk 0:02:46]} 14... b5 {[%clk 0:02:33.3]} 15. Bb3 {[%clk 0:02:45.9]}
15... Bb7 {[%clk 0:02:31.8]} 16. Ne2 {[%clk 0:02:43.5]} 16... Na5 {[%clk
0:02:13.8]} 17. Rhf1 {[%clk 0:02:17.3]} 17... Nxb3+ {[%clk 0:02:04.1]} 18. axb3
{[%clk 0:02:18.2]} 18... Bxe4 {[%clk 0:02:03.8]} 19. Nxf4 {[%clk 0:02:17.6]}
19... Bh6 {[%clk 0:01:56.8]} 20. Nd2 {[%clk 0:02:15.3]} 20... Bxf4 {[%clk
0:01:53.1]} 21. Rxf4 {[%clk 0:02:14.4]} 21... Bxg2 {[%clk 0:01:53]} 22. Rg1
{[%clk 0:02:11.3]} 22... Rxh2 {[%clk 0:01:45.8]} 23. Rf2 {[%clk 0:02:08.4]}
23... Rh1 {[%clk 0:01:17.3]} 24. Rxg2 {[%clk 0:02:03.9]} 24... Rxg1+ {[%clk
0:01:17]} 25. Rxg1 {[%clk 0:02:02.4]} 25... Ke7 {[%clk 0:01:17.4]} 26. Kd1
{[%clk 0:01:58.6]} 26... Rh8 {[%clk 0:01:16.3]} 27. Nf3 {[%clk 0:01:55.8]} 27...
Rh3 {[%clk 0:01:15.6]} 28. Nd4 {[%clk 0:01:48.1]} 28... Rh4 {[%clk 0:01:11.9]}
29. Nc6+ {[%clk 0:01:45.9]} 29... Kd7 {[%clk 0:01:03.6]} 30. Na5 {[%clk
0:01:42.8]} 30... Rd4+ {[%clk 0:00:53.3]} 31. Ke2 {[%clk 0:01:41.4]} 31... Rh4
{[%clk 0:00:49.7]} 32. Rg3 {[%clk 0:01:25.2]} 32... Kc7 {[%clk 0:00:47.4]} 33.
c3 {[%clk 0:01:18.3]} 33... Rh2+ {[%clk 0:00:40]} 34. Kd3 {[%clk 0:01:18.6]}
34... Rxb2 {[%clk 0:00:39.6]} 35. Rg7 {[%clk 0:01:19]} 35... Rf2 {[%clk
0:00:35.3]} 36. Ke3 {[%clk 0:01:15.3]} 36... Rf1 {[%clk 0:00:34.3]} 37. Rg8
{[%clk 0:01:10.7]} 37... Kb6 {[%clk 0:00:32.7]} 38. b4 {[%clk 0:01:10.7]} 38...
Re1+ {[%clk 0:00:32]} 39. Kd2 {[%clk 0:01:10.6]} 39... Rf1 {[%clk 0:00:30.3]}
40. Re8 {[%clk 0:01:10.7]} 40... Kc7 {[%clk 0:00:23.8]} 41. Re7+ {[%clk
0:01:10.3]} 41... Kc8 {[%clk 0:00:23.1]} 42. Ra7 {[%clk 0:01:08.5]} 42... Rf2+
{[%clk 0:00:22.3]} 43. Ke3 {[%clk 0:01:08.3]} 43... Rc2 {[%clk 0:00:18.6]} 44.
Kd3 {[%clk 0:01:07.7]} 44... Rf2 {[%clk 0:00:18.4]} 45. Rxa6 {[%clk 0:01:07.3]}
45... Kd7 {[%clk 0:00:18.1]} 46. Ra7+ {[%clk 0:01:06.9]} 46... Kc8 {[%clk
0:00:17]} 47. Rb7 {[%clk 0:01:04.3]} 47... Ra2 {[%clk 0:00:15.8]} 48. Rxf7
{[%clk 0:01:03.6]} 48... Ra1 {[%clk 0:00:14.8]} 49. Re7 {[%clk 0:01:02.3]} 49...
Re1 {[%clk 0:00:14.4]} 50. Rb7 {[%clk 0:01:01.3]} 50... Ra1 {[%clk 0:00:13.4]}
51. Rxb5 {[%clk 0:01:01.1]} 51... Rd1+ {[%clk 0:00:12.6]} 52. Kc2 {[%clk
0:01:01]} 52... Re1 {[%clk 0:00:12.5]} 53. Kd2 {[%clk 0:01:00.9]} 53... Rh1
{[%clk 0:00:11.2]} 54. Rg5 {[%clk 0:01:00.9]} 54... Rh2+ {[%clk 0:00:11.4]} 55.
Kd3 {[%clk 0:01:00.8]} 55... Rh3+ {[%clk 0:00:11.8]} 56. Kc4 {[%clk 0:01:01.2]}
56... d5+ {[%clk 0:00:11.9]} 57. Kd4 {[%clk 0:01:00.3]} 57... Rh4+ {[%clk
0:00:12]} 58. Kc5 {[%clk 0:01:00.1]} 58... Rh3 {[%clk 0:00:11.5]} 59. c4 {[%clk
0:00:52.3]} 59... dxc4 {[%clk 0:00:10.2]} 60. Nxc4 {[%clk 0:00:53.2]} 60... Rc3
{[%clk 0:00:09.5]} 61. Rg7 {[%clk 0:00:51.1]} 61... e5 {[%clk 0:00:08.7]} 62.
Re7 {[%clk 0:00:50.5]} 62... Kd8 {[%clk 0:00:04.9]} 63. Rxe5 {[%clk 0:00:50.3]}
63... Kd7 {[%clk 0:00:05.8]} 64. b5 {[%clk 0:00:50.2]} 64... Kc7 {[%clk
0:00:05.8]} 65. b6+ {[%clk 0:00:50.3]} 65... Kb7 {[%clk 0:00:05.6]} 66. Re7+
{[%clk 0:00:50.7]} 66... Kc8 {[%clk 0:00:05.6]} 67. Rc7+ {[%clk 0:00:49.7]}
67... Kb8 {[%clk 0:00:05.6]} 68. Rh7 {[%clk 0:00:50]} 68... Ka8 {[%clk
0:00:04.3]} 69. Kb4 {[%clk 0:00:49.7]} 69... Rc1 {[%clk 0:00:03.1]} 70. Na5
{[%clk 0:00:48.7]} 70... Rb1+ {[%clk 0:00:02.8]} 71. Kc5 {[%clk 0:00:49]} 71...
Rc1+ {[%clk 0:00:03.4]} 72. Kb5 {[%clk 0:00:49.2]} 72... Rb1+ {[%clk 0:00:03.3]}
73. Ka6 {[%clk 0:00:49.2]} 73... Ra1 {[%clk 0:00:02.9]} 74. Rh8# {[%clk
0:00:49.2]} 1-0

[Event "Early-Titled-Tuesday-Blitz-March-26-2024"]
[Site "Chess.com"]
[Date "2024.03.26"]
[Round "1"]
[White "savitha1030"]
[Black "PeshkaCh"]
[Result "1-0"]
[WhiteElo "2515"]
[BlackElo "2848"]
[TimeControl "180+1"]
[EndTime "8:08:21 PDT"]
[Termination "savitha1030 won by checkmate"]

1. Nf3 {[%clk 0:03:00.9]} 1... Nf6 {[%clk 0:02:59.7]} 2. g3 {[%clk 0:03:01.6]}
2... g6 {[%clk 0:03:00]} 3. Bg2 {[%clk 0:03:02.3]} 3... Bg7 {[%clk 0:03:00.7]}
4. O-O {[%clk 0:03:03.2]} 4... O-O {[%clk 0:03:01.4]} 5. Nc3 {[%clk 0:03:03.8]}
5... c5 {[%clk 0:03:01.7]} 6. d4 {[%clk 0:03:04]} 6... cxd4 {[%clk 0:03:01.7]}
7. Nxd4 {[%clk 0:03:04.9]} 7... Nc6 {[%clk 0:03:02.3]} 8. Nxc6 {[%clk
0:02:58.5]} 8... bxc6 {[%clk 0:03:03.2]} 9. Bg5 {[%clk 0:02:57.5]} 9... Rb8
{[%clk 0:03:01.5]} 10. Rb1 {[%clk 0:02:57.7]} 10... Qa5 {[%clk 0:03:00.2]} 11.
Bf4 {[%clk 0:02:57.3]} 11... e5 {[%clk 0:02:55.3]} 12. Qd6 {[%clk 0:02:51.3]}
12... Rxb2 {[%clk 0:02:44.3]} 13. Rxb2 {[%clk 0:02:47.9]} 13... exf4 {[%clk
0:02:44.1]} 14. Qb4 {[%clk 0:02:45]} 14... Qe5 {[%clk 0:02:14.7]} 15. gxf4
{[%clk 0:02:42.3]} 15... Qh5 {[%clk 0:02:14.7]} 16. Rb3 {[%clk 0:01:58.1]} 16...
a5 {[%clk 0:01:56.7]} 17. Qd6 {[%clk 0:01:48.3]} 17... Ba6 {[%clk 0:01:47.7]}
18. Rfb1 {[%clk 0:01:41.8]} 18... Bxe2 {[%clk 0:01:03.4]} 19. Rb8 {[%clk
0:01:28.3]} 19... Ne8 {[%clk 0:00:34.9]} 20. Qe7 {[%clk 0:01:26.2]} 20... Bxc3
{[%clk 0:00:34.7]} 21. Rxe8 {[%clk 0:01:24.9]} 21... Rxe8 {[%clk 0:00:35.6]} 22.
Qxe8+ {[%clk 0:01:25.5]} 22... Kg7 {[%clk 0:00:36.3]} 23. Rb8 {[%clk 0:01:20.3]}
23... Kh6 {[%clk 0:00:32.1]} 24. Qe3 {[%clk 0:00:56.8]} 24... Bf6 {[%clk
0:00:26.5]} 25. f5+ {[%clk 0:00:52.2]} 25... Bg5 {[%clk 0:00:26.8]} 26. Qe5
{[%clk 0:00:41.8]} 26... Bf3 {[%clk 0:00:17.9]} 27. fxg6 {[%clk 0:00:35]} 27...
Qxg6 {[%clk 0:00:16.1]} 28. Qg3 {[%clk 0:00:23.6]} 28... Bxg2 {[%clk 0:00:16.4]}
29. Kxg2 {[%clk 0:00:23.7]} 29... Qxc2 {[%clk 0:00:13.8]} 30. Rg8 {[%clk
0:00:23.6]} 30... Qe4+ {[%clk 0:00:13.2]} 31. Kg1 {[%clk 0:00:23.6]} 31... Qe1+
{[%clk 0:00:12.6]} 32. Kg2 {[%clk 0:00:22.8]} 32... Qe4+ {[%clk 0:00:13.2]} 33.
Qf3 {[%clk 0:00:23.2]} 33... Qxf3+ {[%clk 0:00:07.6]} 34. Kxf3 {[%clk
0:00:24.1]} 34... Be7 {[%clk 0:00:06.8]} 35. Ra8 {[%clk 0:00:23.5]} 35... Bb4
{[%clk 0:00:06.9]} 36. Ra7 {[%clk 0:00:24.1]} 36... d5 {[%clk 0:00:04.8]} 37.
Rxf7 {[%clk 0:00:24.5]} 37... Kg6 {[%clk 0:00:05.7]} 38. Rc7 {[%clk 0:00:23.8]}
38... c5 {[%clk 0:00:06.3]} 39. Ke3 {[%clk 0:00:23.4]} 39... c4 {[%clk
0:00:03.7]} 40. Kd4 {[%clk 0:00:23.4]} 40... Kf5 {[%clk 0:00:02.8]} 41. Kxd5
{[%clk 0:00:22.7]} 41... c3 {[%clk 0:00:03.5]} 42. Kd4 {[%clk 0:00:22.6]} 42...
Kf4 {[%clk 0:00:03]} 43. Kd3 {[%clk 0:00:22.9]} 43... Kf3 {[%clk 0:00:03.2]} 44.
Rf7+ {[%clk 0:00:23.1]} 44... Kg2 {[%clk 0:00:03.5]} 45. Rxh7 {[%clk 0:00:22.9]}
45... Kxf2 {[%clk 0:00:04.1]} 46. h4 {[%clk 0:00:22.8]} 46... Ke1 {[%clk
0:00:04.5]} 47. Kc2 {[%clk 0:00:22.5]} 47... Kf2 {[%clk 0:00:03.5]} 48. h5
{[%clk 0:00:23]} 48... Kg3 {[%clk 0:00:03.4]} 49. h6 {[%clk 0:00:22.1]} 49...
Bf8 {[%clk 0:00:04]} 50. Rh8 {[%clk 0:00:20.1]} 50... Be7 {[%clk 0:00:03]} 51.
h7 {[%clk 0:00:20.4]} 51... Kh4 {[%clk 0:00:03.6]} 52. Rg8 {[%clk 0:00:20.7]}
52... Bf6 {[%clk 0:00:04.2]} 53. h8=Q+ {[%clk 0:00:21.3]} 53... Bxh8 {[%clk
0:00:04.8]} 54. Rxh8+ {[%clk 0:00:22.2]} 54... Kg5 {[%clk 0:00:05.7]} 55. Rc8
{[%clk 0:00:23]} 55... Kf6 {[%clk 0:00:06.6]} 56. Rxc3 {[%clk 0:00:23.5]} 56...
Ke6 {[%clk 0:00:07.5]} 57. Rd3 {[%clk 0:00:24.4]} 57... Ke5 {[%clk 0:00:07.8]}
58. Kb3 {[%clk 0:00:25.3]} 58... Ke4 {[%clk 0:00:08.7]} 59. Rd1 {[%clk
0:00:26.1]} 59... Ke5 {[%clk 0:00:09.6]} 60. Ka4 {[%clk 0:00:26.6]} 60... Ke4
{[%clk 0:00:10.5]} 61. Kxa5 {[%clk 0:00:27.5]} 61... Ke5 {[%clk 0:00:11.4]} 62.
Kb5 {[%clk 0:00:28.1]} 62... Ke6 {[%clk 0:00:12.3]} 63. a4 {[%clk 0:00:28.7]}
63... Ke7 {[%clk 0:00:13.2]} 64. a5 {[%clk 0:00:29.5]} 64... Ke8 {[%clk
0:00:14.1]} 65. a6 {[%clk 0:00:30.4]} 65... Ke7 {[%clk 0:00:15]} 66. a7 {[%clk
0:00:31.3]} 66... Ke8 {[%clk 0:00:15.9]} 67. Rd6 {[%clk 0:00:31.1]} 67... Ke7
{[%clk 0:00:16.8]} 68. Rb6 {[%clk 0:00:31.4]} 68... Kd7 {[%clk 0:00:17]} 69.
a8=Q {[%clk 0:00:30.1]} 69... Kc7 {[%clk 0:00:17.9]} 70. Qa7+ {[%clk 0:00:30.2]}
70... Kc8 {[%clk 0:00:18.8]} 71. Rb8# {[%clk 0:00:30.7]} 1-0